Cogmind - Beta 17.1 @@@ ROGUE MODE // 2026.08.29 @ 17:49:07 // Winter2019/RPGLIKE Player: obl-vn Result: Self-destructed Performance ------------- Evolutions (9) 4500 Regions Visited (20) 4000 Robots Destroyed (368) 1840 Value Destroyed (18450) 18450 Prototype IDs (57) 1140 Alien Tech Used (9) 1800 Bonus (50549) 50549 TOTAL SCORE: 82279 Bonus ------- Triggered High Security 1500 Triggered Max Security 4000 High Alert Combat Kills 8986 Follower Combat Kills 5719 Prayed to X0-1V1 5000 Major X0-1V1 Interference 12500 Network Hubs Disabled 200 Delivered SUBCON Basin 2000 Registered with UFD 300 Met Zhirov 300 Built Enhanced Grunts 300 Met R17 at Cetus 500 Used Core Reset Matrix 3000 Met R17 at Research 2000 Scanned by Researcher 500 Pursued by Intercept 1000 Integrated Exoskeleton 5000 Friendly Fire -2256 Cogmind --------- Core Integrity 455/2650 Matter 65/800 Energy 1500/1500 System Corruption 0% +Membrane Temperature Cool (0) Movement Walking (30) +NEM 2 Location -1/Access Parts ------- > --- POWER (1) -------- (None) > --- PROPULSION (3) --- Sigix Exoskeleton > --- UTILITY (3) ------ Advanced Phase Shifter Long-range Tractor Beam X0-1V1's Piety Tracker > --- WEAPON (3) ------- Sigix Sheargun Tactical Quantum Warhead Z-bomb Delivery System > --- INVENTORY (2) ---- Perforator Peak State ------------ > --- POWER ------------ Cooled Antimatter Reactor > --- PROPULSION ------- Sigix Exoskeleton > --- UTILITY ---------- Advanced Phase Shifter Long-range Tractor Beam X0-1V1's Piety Tracker > --- WEAPON ----------- Perforator Tactical Quantum Warhead > --- INVENTORY -------- Tactical Quantum Warhead System Spiker [Rating: 235] Favorites ----------- Power Hybrid Fission Core Engine Heavy Ion Engine Power Core Hybrid Fission Core Reactor Fusion Reactor Propulsion Shield Leg Treads Light Treads Leg Shield Leg Wheel Armored Wheel Hover Unit Gravmag Array Flight Unit Flight Unit Utility X0-1V1's Piety Tracker Device X0-1V1's Piety Tracker Storage Medium Matter Pod Processor Makeshift Targeting Computer Hackware Makeshift System Shield Protection Reactive Plating Weapon Advanced Micro-nuke Launcher Energy Gun Sigix Sheargun Energy Cannon Enhanced Nova Cannon Ballistic Gun Minigun Ballistic Cannon Antimatter Cannon Launcher Advanced Micro-nuke Launcher Special Weapon Plasma Flamer Impact Weapon Powered Hammer Slashing Weapon DM-GVY's Chainsaw Build | -11 -10 -10 -7 -7 -5 -5 -5 -5 -5 -4 -4 -4 -4 -3 -3 -3 -3 -2 -2 -1 ------- Run | Yrd Mat Sub Rec Scr Fac Ext Cet Arc Hub Fac Upp Upp Zhi Pro Res Qua Sec Res Tes Acc Slots Evolved 16 | . 8 . . 2 1 . . . 2 . . 1 1 . . . 1 . . . Power 2 | . 1 . . . . . . . . . . 1 . . . . . . . . Propulsion 4 | . 2 . . 1 . . . . . . . . 1 . . . . . . . Utility 8 | . 5 . . . 1 . . . 2 . . . . . . . . . . . Weapon 2 | . . . . 1 . . . . . . . . . . . . 1 . . . Parts Attached 74 | 2 12 3 2 15 8 . . 7 2 5 1 2 3 4 2 . . 1 5 . Power 10 | 1 2 . . . . . . 1 . 1 1 1 . 3 . . . . . . Engine 3 | 1 2 . . . . . . . . . . . . . . . . . . . Core . | . . . . . . . . . . . . . . . . . . . . . Reactor 7 | . . . . . . . . 1 . 1 1 1 . 3 . . . . . . Propulsion 13 | . 3 . . 3 1 . . . . 1 . . 3 . 2 . . . . . Treads . | . . . . . . . . . . . . . . . . . . . . . Leg 11 | . 1 . . 3 1 . . . . 1 . . 3 . 2 . . . . . Wheel 1 | . 1 . . . . . . . . . . . . . . . . . . . Hover . | . . . . . . . . . . . . . . . . . . . . . Flight 1 | . 1 . . . . . . . . . . . . . . . . . . . Utility 36 | . 5 3 1 9 4 . . 6 2 2 . 1 . 1 . . . 1 1 . Device 27 | . 1 2 . 6 4 . . 6 2 2 . 1 . 1 . . . 1 1 . Storage 3 | . 3 . . . . . . . . . . . . . . . . . . . Processor 3 | . . . 1 2 . . . . . . . . . . . . . . . . Hackware . | . . . . . . . . . . . . . . . . . . . . . Protection 3 | . 1 1 . 1 . . . . . . . . . . . . . . . . Artifact . | . . . . . . . . . . . . . . . . . . . . . Weapon 15 | 1 2 . 1 3 3 . . . . 1 . . . . . . . . 4 . Energy Gun 3 | 1 1 . . . . . . . . . . . . . . . . . 1 . Energy Cannon 3 | . . . . 1 2 . . . . . . . . . . . . . . . Ballistic Gun . | . . . . . . . . . . . . . . . . . . . . . Ballistic Cannon 2 | . . . . . 1 . . . . . . . . . . . . . 1 . Launcher 3 | . . . . . . . . . . 1 . . . . . . . . 2 . Special Weapon 1 | . . . . 1 . . . . . . . . . . . . . . . . Impact Weapon 1 | . 1 . . . . . . . . . . . . . . . . . . . Slashing Weapon 2 | . . . 1 1 . . . . . . . . . . . . . . . . Piercing Weapon . | . . . . . . . . . . . . . . . . . . . . . Special Melee Weapon . | . . . . . . . . . . . . . . . . . . . . . Unidentified Prototypes 11 | . 1 . . 1 1 . . . . 2 . . 2 . 1 1 . . 2 . Parts Lost 2 | . . 1 . . . . . . . . . . . . . . 1 . . . Power . | . . . . . . . . . . . . . . . . . . . . . Propulsion . | . . . . . . . . . . . . . . . . . . . . . Utility 2 | . . 1 . . . . . . . . . . . . . . 1 . . . Weapon . | . . . . . . . . . . . . . . . . . . . . . Highest Loss Streak 1 | . . 1 . . . . . . . . . . . . . . 1 . . . To Critical Strikes . | . . . . . . . . . . . . . . . . . . . . . Average Backups 1 | . . . . 1 2 2 2 2 2 2 2 2 2 2 2 2 2 1 1 1 Power . | . . . . . . . . . . . . . . . . . . . . . Propulsion . | . . . . . . . . . . . . . . . . . . . . . Utility . | . . . . . . . . . . . . . . . . . . . . . Weapon . | . . . . . . 1 1 1 1 1 1 1 . . . . . . . 1 Tool/Special . | . . . . . . . . . . . . . . . . . . . . . Unused Backups 11 | . . 1 . . 1 . . . . . . . 1 . . 1 . . 7 . Power 2 | . . . . . . . . . . . . . . . . . . . 2 . Propulsion 4 | . . . . . . . . . . . . . . . . . . . 4 . Utility 1 | . . 1 . . . . . . . . . . . . . . . . . . Weapon 2 | . . . . . . . . . . . . . 1 . . . . . 1 . Tool/Special 2 | . . . . . 1 . . . . . . . . . . 1 . . . . Average Slot Usage (%) 92 | . 76 90 85 93 99 100 100 98 99 99 96 99 99 100 100 100 84 79 77 79 Engine 2 | . 4 14 2 2 . . . . . . . . . . . . . . . . Core 6 | . . 1 13 10 6 6 6 6 5 . . . . . . . . . . . Reactor 4 | . . . . 2 6 6 6 6 5 10 11 13 15 15 15 15 12 10 10 9 Leg 20 | . 5 14 12 22 27 26 26 26 23 23 23 22 24 26 26 26 18 10 10 10 Device 36 | . 25 19 39 36 39 46 46 44 51 52 49 50 48 47 47 47 34 29 28 30 Storage 1 | . 4 9 . 1 . . . . . . . . . . . . . . . . Processor 3 | . 2 11 6 3 3 . . . . . . . . . . . . . . . Protection 2 | . 4 8 . 3 . . . . . . . . . . . . . . . . Energy Gun 1 | . 9 . . . . . . . . . . . . . . . 8 20 13 10 Energy Cannon 2 | . . . . 2 3 6 6 6 5 4 5 5 5 5 5 5 2 . . . Ballistic Gun 1 | . . 7 5 1 . . . . . . . . . . . . . . . . Launcher 3 | . 2 . . 3 6 6 6 6 5 5 5 5 5 5 5 5 7 10 16 20 Peak Build Rating 235 | 2 41 54 63 100 106 101 101 101 120 127 125 133 148 155 158 158 226 225 235 234 Average Rating 91 | 1 23 47 58 80 97 101 101 98 114 124 121 128 141 152 155 157 179 224 229 233 On Entrance 116 | . 2 41 54 57 100 101 101 101 101 120 125 119 133 148 155 158 158 219 218 234 Avg Prop Armor Cover (%) 6 | . 13 7 . . 11 . . . 4 4 . . . . 2 2 2 . . . Naked Turns 6 | . . . . . . . . . . . . . . . . . 6 . . . Heaviest Build 117 | 7 23 29 37 66 65 65 65 69 71 84 84 95 95 117 117 117 117 67 62 62 Greatest Support 150 | 3 40 43 43 100 100 90 90 90 90 95 95 95 145 145 150 120 120 60 60 60 Greatest Overweight (x) 2 | 2 2 . 1 . . . . . 1 1 . . . . . . 1 1 1 1 Average Overweight (x) . | 1 . . . . . . . . . . . . . . . . . . . 1 Largest Inventory Capacity 2 | . . 2 2 2 2 2 2 2 2 2 2 2 2 2 2 2 2 2 2 2 Average Capacity 1 | . . 1 2 2 2 2 2 2 2 2 2 2 2 2 2 2 2 2 2 2 Most Carried 2 | . . 2 2 2 2 2 2 2 2 2 2 2 2 2 2 2 2 2 2 2 Average Carried 1 | . . 1 1 1 1 2 2 2 2 2 2 2 1 1 2 1 2 1 1 2 Final Capacity 2 | . . 2 2 2 2 2 2 2 2 2 2 2 2 2 2 2 2 2 2 2 Final Carried 2 | . . 2 1 2 2 2 2 2 2 2 2 2 2 2 2 2 2 2 2 2 Transmogrified Parts 142 | . 12 16 17 97 . . . . . . . . . . . . . . . . Integrity Recovered 894 | . 48 79 125 642 . . . . . . . . . . . . . . . . Class Distribution -------------------- 66% | Mutant 25% | Hacker-Mutant 4% | Alien-Sigix Dominant Class ---------------- Mutant | -10/Materials Mutant | -10/Subcaves Mutant | -7/Recycling Mutant | -7/Scraptown Hacker-Mutant | -5/Factory Hacker-Mutant | -5/Extension Hacker-Mutant | -5/Cetus Commander-Mutant | -5/Archives Hacker-Mutant | -5/Hub_04(d) Hacker-Mutant | -4/Factory Hacker-Mutant | -4/Upper Caves Hacker-Mutant | -4/Upper Caves Hacker-Mutant | -4/Zhirov Hacker-Mutant | -3/Proximity Caves Hacker-Mutant | -3/Research Hacker-Mutant | -3/Quarantine Hacker-Mutant | -3/Section 7 Alien-Sigix | -2/Research Alien-Sigix | -2/Testing Alien-Sigix | -1/Access Resources | -11 -10 -10 -7 -7 -5 -5 -5 -5 -5 -4 -4 -4 -4 -3 -3 -3 -3 -2 -2 -1 ----------- Run | Yrd Mat Sub Rec Scr Fac Ext Cet Arc Hub Fac Upp Upp Zhi Pro Res Qua Sec Res Tes Acc Matter Collected 10370 | 220 618 320 202 1321 424 111 143 328 265 1275 429 287 65 508 992 270 367 1756 194 275 Remotely 7365 | . . . . . 403 111 143 122 265 1178 429 287 65 508 992 270 367 1756 194 275 Salvage Created 8380 | . 298 346 426 1330 894 356 97 398 1369 443 96 . 109 659 273 118 159 656 143 210 Parts 406 | . 18 31 13 90 41 8 6 36 57 16 6 3 . 16 6 3 10 26 6 14 Haulers Intercepted 13 | . 2 . . . 2 . . . 1 1 . . . . 2 1 3 . . 1 Recyclers Shooed 5 | . . . 4 . . 1 . . . . . . . . . . . . . . Parts Field Recycled . | . . . . . . . . . . . . . . . . . . . . . Retrieved Matter . | . . . . . . . . . . . . . . . . . . . . . Parts Self-Destructed 33 | . . 18 . . . . . . . . 5 5 . 5 . . . . . . Prevented 9 | . . . . . . . . . . . . 1 . 8 . . . . . . Parts Restored . | . . . . . . . . . . . . . . . . . . . . . Kills | -11 -10 -10 -7 -7 -5 -5 -5 -5 -5 -4 -4 -4 -4 -3 -3 -3 -3 -2 -2 -1 ------- Run | Yrd Mat Sub Rec Scr Fac Ext Cet Arc Hub Fac Upp Upp Zhi Pro Res Qua Sec Res Tes Acc Combat Hostiles Destroyed 287 | . 10 11 1 59 17 10 4 4 38 21 11 3 . 19 9 6 7 41 3 13 Melee 2 | . 1 . . 1 . . . . . . . . . . . . . . . . Guns 26 | . 5 10 1 . . . . . . . . . . . . . . 8 . 2 Cannons 20 | . 2 . . 1 7 . 1 2 2 . 1 . . 1 1 1 . 1 . . AOE 231 | . 1 1 . 57 8 10 3 2 35 21 10 3 . 16 7 5 7 31 3 11 Classes Destroyed 30 | . 4 2 1 7 7 2 . 1 3 . . . . 1 . . 1 1 . . Worker 15 | . . . . . 5 . . . 2 2 . . . . 1 1 3 . . 1 Builder 12 | . . . . . 3 1 . . 3 . . . . . 1 . 3 . . 1 Hauler 13 | . 2 . . . 2 . . . 1 1 . . . . 2 1 3 . . 1 Recycler 11 | . 2 . 4 . 1 1 . . 1 . . . . . . . . 1 . 1 Mechanic 5 | . . . . . . . . . 2 1 . . . . . . . 1 1 . Operator 12 | . . . . . . . . 9 1 1 . . . . . 1 . . . . Drone 2 | . . . . . . . . . . . . . . 2 . . . . . . Turret 1 | . . 1 . . . . . . . . . . . . . . . . . . Watcher 9 | . . . . . 1 . 2 . 1 2 . . . . 1 1 . . . 1 Swarmer 34 | . 6 3 . . . . . . . . 4 3 . 7 . . 2 4 . 5 Saboteur 3 | . . . . . . . . . 1 2 . . . . . . . . . . Grunt 107 | . 4 . . . 10 7 3 2 21 13 2 . . 6 5 5 4 19 3 3 Brawler 7 | . . . . . 1 . . . 3 2 . . . . . . . 1 . . Duelist 8 | . . . . . 1 1 . . 2 1 . . . . . . . 3 . . Protector 6 | . . . . . 1 . . . 2 2 . . . . . . . 1 . . Researcher 2 | . . . . . . . . . . . . . . . . . 1 . 1 . Sentry 21 | . . . 1 . 1 . . 2 2 . . . . 3 . . 1 10 . 1 Specialist 2 | . . . . . . . . . 2 . . . . . . . . . . . Hunter 11 | . . . . . . 1 . . 3 1 2 . . . 2 . . . . 2 Programmer 11 | . . . . . 3 . . . 1 . 2 . . . . 1 . 2 . 2 Behemoth 5 | . . . . . . 1 . . . . 1 . . 1 2 . . . . . Cetus Guard 1 | . . . . . . . 1 . . . . . . . . . . . . . Enhanced Grunt 1 | . . . . . . . . 1 . . . . . . . . . . . . Lightning 1 | . . . . . . . . . 1 . . . . . . . . . . . Tracker 1 | . . . . . . . . . . . . . . . . . . 1 . . Subdweller 8 | . . 8 . . . . . . . . . . . . . . . . . . Bolteater 5 | . . . . 5 . . . . . . . . . . . . . . . . Federalist 3 | . . . . 3 . . . . . . . . . . . . . . . . Explorer 5 | . . . . 5 . . . . . . . . . . . . . . . . Ranger 10 | . . . . 10 . . . . . . . . . . . . . . . . Guru 7 | . . . . 7 . . . . . . . . . . . . . . . . Scrapper 16 | . . . . 16 . . . . . . . . . . . . . . . . Elite 13 | . . . . 13 . . . . . . . . . . . . . . . . Assembled 3 | . . . . . . . . . . . . . . . . . . 3 . . Best Kill Streak 25 | . 6 2 4 25 7 11 3 3 17 12 4 3 . 14 6 10 13 22 3 10 Combat Bots Only 25 | . 6 2 1 25 4 10 3 2 15 6 4 3 . 14 5 6 5 21 3 9 Max Kills in Single Turn 7 | . 1 1 1 4 3 3 2 2 7 3 4 2 . 4 3 2 3 5 3 4 Gunslinging 1 | . . . . . . . . . . . . . . . . . . 1 . . Exploded 5 | . 1 1 . 4 2 3 2 2 5 3 4 2 . 4 2 2 2 5 3 4 Melee 1 | . 1 . . 1 . . . . . . . . . . . . . . . . Uniques/NPCs Destroyed 2 | . . . . 2 . . . . . . . . . . . . . . . . Triborg (-7/Scraptown) Optimus (-7/Scraptown) Combat | -11 -10 -10 -7 -7 -5 -5 -5 -5 -5 -4 -4 -4 -4 -3 -3 -3 -3 -2 -2 -1 -------- Run | Yrd Mat Sub Rec Scr Fac Ext Cet Arc Hub Fac Upp Upp Zhi Pro Res Qua Sec Res Tes Acc Hostile Shots Fired 1459 | . 50 126 201 128 75 19 41 11 62 86 25 18 . 34 45 42 198 248 23 27 Missed 576 | . 11 30 66 52 23 7 11 5 16 45 14 11 . 14 17 29 85 118 9 13 Hits 883 | . 39 96 135 76 52 12 30 6 46 41 11 7 . 20 28 13 113 130 14 14 Melee 6 | . . . . 3 1 . . . . . . . . . . . 1 . 1 . Projectile 877 | . 39 96 135 73 51 12 30 6 46 41 11 7 . 20 28 13 112 130 13 14 AOE 1 | . . . . 1 . . . . . . . . . . . . . . . . Critical Strikes 39 | . . . . 7 6 . 5 . . 5 1 . . 2 2 . 6 4 . 1 Part Disruptions 1 | . . . . . . . . . 1 . . . . . . . . . . . Damage Taken 8653 | . 498 1133 409 680 538 127 279 84 470 422 140 62 . 260 545 205 924 1268 234 375 Core 6810 | . 386 842 275 464 415 94 228 67 363 323 107 45 . 204 433 154 787 1102 198 323 Absorbed by Shields 6000 | . . 282 508 663 478 138 294 89 494 343 148 67 . 249 260 193 816 978 . . Redirected to Core 5636 | . 221 596 180 441 375 94 182 57 315 298 107 45 . 182 389 154 595 933 180 292 Ignored by Resistances 6177 | . . . . 159 178 124 209 99 201 262 116 62 . 180 51 132 1072 2701 245 386 Core Remaining (%) 65 | 100 . . . 31 . . . . 99 . . . . 85 . . 52 . 25 . Volleys Fired 791 | . 33 111 59 74 101 11 22 44 60 42 18 7 8 40 35 17 31 43 12 23 Largest 2 | . 1 1 1 1 2 1 1 2 1 1 1 1 1 1 1 1 2 2 2 1 Hottest 200 | . 80 25 33 69 150 120 120 150 120 120 120 120 120 120 120 120 200 200 200 100 Shots Fired 824 | . 33 111 59 74 108 12 23 42 60 42 18 8 8 41 34 17 35 62 14 23 Gun 262 | . 10 111 59 . . . . . . . . . . . . . 13 44 13 12 Cannon 276 | . . . . 11 90 1 7 39 25 21 3 3 8 32 20 10 6 . . . Launcher 264 | . 1 . . 63 18 11 16 3 35 21 15 5 . 9 14 7 16 18 1 11 Special 22 | . 22 . . . . . . . . . . . . . . . . . . . Kinetic 201 | . . 111 59 . 31 . . . . . . . . . . . . . . . Thermal 256 | . 22 . . . 59 1 7 39 25 21 3 3 8 32 20 10 6 . . . Explosive 264 | . 1 . . 63 18 11 16 3 35 21 15 5 . 9 14 7 16 18 1 11 Electromagnetic 21 | . 10 . . 11 . . . . . . . . . . . . . . . . Slashing 82 | . . . . . . . . . . . . . . . . . 13 44 13 12 Robot Hit Streak 35 | . 9 14 10 14 12 8 23 11 14 21 7 1 4 15 20 25 13 34 35 7 Robot Miss Streak 3 | . 2 2 2 3 2 2 . 2 1 1 1 1 1 1 1 2 1 1 . 1 Penetration Max 3 | . . . 3 . . . . . . . . . . . . . . 1 . . Secondary Targets 3 | . . . . . . . . . . . . . . . . . . 3 . . Max Gunslinging Chain 1 | . . . . . . . . . . . . . . . . . . 1 . . Shots Hit Robots 511 | . 35 60 35 40 60 8 15 36 35 35 7 2 6 26 20 9 15 51 1 15 Core Hits 779 | . 16 19 22 142 48 27 33 22 91 73 19 8 1 32 22 24 31 115 10 24 Critical Kills 14 | . . 1 5 . 2 . . 1 1 1 . . . 2 1 . . . . . Critical Parts Destroyed 13 | . . 1 12 . . . . . . . . . . . . . . . . . Critical Strikes 35 | . 2 3 18 1 3 . . 1 1 1 . . . 2 1 . . 1 . 1 Burn 2 | . 2 . . . . . . . . . . . . . . . . . . . Meltdown 8 | . . . . . 2 . . 1 1 1 . . . 2 1 . . . . . Destroy 21 | . . 3 18 . . . . . . . . . . . . . . . . . Blast 1 | . . . . . 1 . . . . . . . . . . . . . . . Corrupt 1 | . . . . 1 . . . . . . . . . . . . . . . . Sever 2 | . . . . . . . . . . . . . . . . . . 1 . 1 Melee Attacks 40 | . 16 . 8 14 2 . . . . . . . . . . . . . . . Impact 16 | . 16 . . . . . . . . . . . . . . . . . . . Slashing 24 | . . . 8 14 2 . . . . . . . . . . . . . . . Piercing . | . . . . . . . . . . . . . . . . . . . . . Sneak Attacks 2 | . 1 . 1 . . . . . . . . . . . . . . . . . Combat Hostiles . | . . . . . . . . . . . . . . . . . . . . . Follow-up Attacks . | . . . . . . . . . . . . . . . . . . . . . Damage Inflicted 77114 | . 727 1010 433 10013 6137 2753 3033 2306 10194 7487 1677 861 241 3695 2940 2916 3924 11996 691 4080 Guns 4142 | . 116 1010 368 . . . . . . . . . . . . . . 2253 . 395 Cannons 7346 | . . . . 100 2067 . 246 1385 681 762 106 87 241 984 384 211 42 50 . . Explosions 64648 | . 161 . . 9528 4070 2753 2787 921 9513 6725 1571 774 . 2711 2556 2705 3837 9693 658 3685 Melee 726 | . 276 . 65 385 . . . . . . . . . . . . . . . . Ramming 79 | . 1 . . . . . . . . . . . . . . . 45 . 33 . Kinetic 2321 | . . 1010 368 . 893 . . . . . . . . . . . . 50 . . Thermal 6898 | . 230 . . . 1174 . 246 1385 681 1047 106 87 241 1064 384 211 42 . . . Explosive 64130 | . 104 . . 9528 4070 2753 2787 921 9471 6386 1571 774 . 2631 2556 2705 3837 9693 658 3685 Electromagnetic 312 | . 116 . . 100 . . . . 42 54 . . . . . . . . . . Impact 276 | . 276 . . . . . . . . . . . . . . . . . . . Slashing 3098 | . . . 65 385 . . . . . . . . . . . . . 2253 . 395 Piercing . | . . . . . . . . . . . . . . . . . . . . . Highest Corruption 39 | . . . . 1 19 19 20 39 1 . . 10 10 10 10 10 1 . . . Average Corruption 12 | . . . . 1 15 19 19 19 1 . . 7 10 10 9 4 1 . . . Corruption Purged 39 | . . . . . . . . 39 . . . . . . . . . . . . Corruption Blocked . | . . . . . . . . . . . . . . . . . . . . . Effects 127 | . . . . 1 39 14 13 26 . . . 6 7 . 17 4 . . . . Message Errors 27 | . . . . . 10 2 2 5 . . . 1 2 . 5 . . . . . Matter Fused 29 | . . . . . 8 4 3 6 . . . 2 1 . 4 1 . . . . Heat Flow Errors 16 | . . . . . 6 1 2 4 . . . 1 1 . 1 . . . . . Energy Discharges 9 | . . . . . 4 2 . . . . . . . . 1 2 . . . . Parts Rejected 4 | . . . . 1 . 1 1 1 . . . . . . . . . . . . Parts Fused 1 | . . . . . . . . 1 . . . . . . . . . . . . Data Loss (minor) 17 | . . . . . 4 1 2 3 . . . 1 3 . 2 1 . . . . Data Loss (major) 4 | . . . . . . 1 . 2 . . . . . . 1 . . . . . Misfires 10 | . . . . . 6 1 1 . . . . 1 . . 1 . . . . . Alerts 1 | . . . . . . . 1 . . . . . . . . . . . . . Misdirections 2 | . . . . . . 1 1 . . . . . . . . . . . . . Weapon Failures 7 | . . . . . 1 . . 4 . . . . . . 2 . . . . . Overload Shots . | . . . . . . . . . . . . . . . . . . . . . Overflow Damage 3830 | . 39 . 25 373 339 131 95 220 706 204 103 . 42 349 84 228 242 253 28 369 Projectiles 539 | . . . . . 114 . . 95 43 . . . 42 218 . . 27 . . . Explosions 3163 | . 5 . . 304 225 131 95 125 663 204 103 . . 131 84 228 215 253 28 369 Melee 128 | . 34 . 25 69 . . . . . . . . . . . . . . . . Knockbacks 11 | . 2 . . . 9 . . . . . . . . . . . . . . . Impact 2 | . 2 . . . . . . . . . . . . . . . . . . . Kinetic 9 | . . . . . 9 . . . . . . . . . . . . . . . Secondary . | . . . . . . . . . . . . . . . . . . . . . Self-Inflicted Damage 1811 | . 48 . . 375 63 46 . 55 114 28 63 42 . 110 . 71 115 518 40 123 Shots 44 | . 1 . . 5 1 1 . 1 2 1 2 1 . 3 . 2 3 16 1 4 Rammed . | . . . . . . . . . . . . . . . . . . . . . Targets Rammed 8 | . 1 . . . . . . . . . . . . . . . 3 . 4 . Kicked 8 | . 1 . . . . . . . . . . . . . . . 3 . 4 . Crushed . | . . . . . . . . . . . . . . . . . . . . . Highest Temperature 380 | . 256 286 328 260 380 215 227 220 4 . . 63 62 . 315 . 243 312 . . Average Temperature 90 | . 99 153 135 67 88 90 71 58 2 . . 63 62 . 109 . 148 184 . . Received Heat Transfer 1996 | . 186 207 105 79 171 27 8 12 64 79 5 4 . 39 642 16 116 164 72 . Effects 7 | . 1 . 3 . 3 . . . . . . . . . . . . . . . Shutdowns 1 | . . . . . 1 . . . . . . . . . . . . . . . Energy Bleed 2 | . 1 . 1 . . . . . . . . . . . . . . . . . Interference 4 | . . . 2 . 2 . . . . . . . . . . . . . . . Siege Activations . | . . . . . . . . . . . . . . . . . . . . . Martial Activations . | . . . . . . . . . . . . . . . . . . . . . Shielding Activations 4 | . . . . 3 . . . . . . 1 . . . . . . . . . Total Turns 4740 | . . . . 4726 . . . . . . 14 . . . . . . . . . Longest Duration 4580 | . . . . 4580 . . . . . . 14 . . . . . . . . . Robots Disrupted 2 | . 1 . . . . . . . . 1 . . . . . . . . . . Combat Hostiles 1 | . 1 . . . . . . . . . . . . . . . . . . . Robots Corrupted 1 | . 1 . . . . . . . . . . . . . . . . . . . Combat Hostiles . | . . . . . . . . . . . . . . . . . . . . . Parts Fried 6 | . 2 . . 3 . . 1 . . . . . . . . . . . . . Impact Corruptions 2 | . 2 . . . . . . . . . . . . . . . . . . . Robots Melted 9 | . 1 . . . 2 . . 1 1 1 . . . 2 1 . . . . . Combat Hostiles 7 | . 1 . . . 2 . . . 1 . . . . 2 1 . . . . . Parts Melted 20 | . 4 1 . . 3 . . 2 . . 6 . . 2 1 . . 1 . . Heat Transferred 7406 | . 1650 . . . 914 . 222 1221 592 942 74 46 259 931 333 185 37 . . . Parts Sabotaged . | . . . . . . . . . . . . . . . . . . . . . Parts Stolen . | . . . . . . . . . . . . . . . . . . . . . Parts Stripped . | . . . . . . . . . . . . . . . . . . . . . Power Chain Reactions 2 | . 2 . . . . . . . . . . . . . . . . . . . Alert | -11 -10 -10 -7 -7 -5 -5 -5 -5 -5 -4 -4 -4 -4 -3 -3 -3 -3 -2 -2 -1 ------- Run | Yrd Mat Sub Rec Scr Fac Ext Cet Arc Hub Fac Upp Upp Zhi Pro Res Qua Sec Res Tes Acc Maximum Alert Level 5 | . 1 . . . 5 4 4 3 5 5 . . . . 3 4 5 5 5 5 Low Security (%) 30 | 100 86 . 100 . 2 . . . . . . . . . 3 . . . . . Level 1 4 | . 13 . . . 3 . . . 16 . . . . . 6 . . . . . Level 2 11 | . . . . . 22 . . 15 3 . . . . . 70 60 16 . . . Level 3 15 | . . . . . 21 21 47 84 3 . . . . . 19 4 8 24 . . Level 4 12 | . . . . . 31 78 52 . 1 . . . . . . 35 14 4 . 51 Level 5 11 | . . . . . 15 . . . 37 48 . . . . . . 36 . 46 12 High Security 6 | . . . . . 3 . . . 37 51 . . . . . . . . . . Max Security 7 | . . . . . . . . . . . . . . . . . 24 70 53 35 Peak Influence 3921 | . 273 . 176 . 1779 1520 1309 1002 3717 3666 . . . . 1034 1224 1818 3921 2633 2417 Initial 2205 | . . . 112 . . 1100 823 503 339 1820 . . . . 209 576 679 1100 2205 1579 Average 995 | . 67 . 115 . 1067 1332 1103 829 1941 2349 . . . . 589 794 1430 2245 2557 1777 Influence Increases 19091 | . 624 245 445 . 2221 510 576 769 3628 1966 323 199 6 449 1079 793 1438 2364 548 908 Destroy 0b10 Robot/C 6360 | . 260 80 20 . 720 240 240 220 1300 760 220 140 . 340 200 120 280 860 100 260 Destroy 0b10 Robot/NC 540 | . 30 . 20 . 95 15 10 45 100 45 . . 5 10 55 20 45 15 5 25 Destroy Leader 924 | . 28 . . . 146 32 10 20 176 106 40 20 . 10 62 24 36 130 20 64 Allied During Kill 2328 | . 5 . . . 227 72 152 285 1029 219 63 39 1 89 77 . 42 21 . 7 Successful Hack 61 | . 26 . . . 29 . . . . . . . . . 6 . . . . . Select Force Hacks 180 | . . . 180 . . . . . . . . . . . . . . . . . Disable Machine 1650 | . 30 . 210 . 180 15 . 75 165 210 . . . . 90 240 165 60 165 45 Anti-Garrison Action 300 | . . . . . . . . . 150 . . . . . . . . 150 . . Destroy Structure 5775 | . 25 . . . 612 136 164 124 708 596 . . . . 574 314 644 1113 258 507 Partial Spotted 15 | . . . . . . . . . . . . . . . 15 . . . . . Lose Combat Pursuer 450 | . 30 165 15 . . . . . . 30 . . . . . 75 120 15 . . Miscellaneous 508 | . 190 . . . 212 . . . . . . . . . . . 106 . . . Influence Decreases 17550 | . 373 261 557 123 442 1048 787 1058 881 2017 1635 710 1849 139 363 610 850 887 1836 1124 Entered New Map 13492 | . . 121 123 123 . 908 647 756 631 1897 1357 448 1843 . 101 450 530 787 1716 1054 Time Decay 3668 | . 373 140 434 . 442 140 140 302 170 120 278 262 6 139 222 160 150 60 60 70 Lost Part 10 | . . . . . . . . . . . . . . . . . 10 . . . Lost Ally 380 | . . . . . . . . . 80 . . . . . 40 . 160 40 60 . Squads Dispatched 109 | . . . . . 10 1 1 2 14 9 . . . . 3 2 18 29 13 7 Investigation 6 | . . . . . 1 . 1 1 . . . . . . 1 . . 1 1 . Extermination 5 | . . . . . 2 . . 1 . . . . . . . 1 1 . . . Reinforcement 23 | . . . . . 5 1 . . 3 . . . . . 2 1 9 1 . 1 Assault 69 | . . . . . 2 . . . 11 9 . . . . . . 7 22 12 6 Garrison 4 | . . . . . . . . . . . . . . . . . . 4 . . Intercept 2 | . . . . . . . . . . . . . . . . . 1 1 . . Searches Triggered . | . . . . . . . . . . . . . . . . . . . . . Construction Impeded 3 | . . . . . 2 . . . . . . . . . . . 1 . . . Haulers Reinforced 4 | . . . . . . . . . 1 . . . . . 2 . 1 . . . Active Scanning Responses . | . . . . . . . . . . . . . . . . . . . . . Cargo Convoy Interrupts . | . . . . . . . . . . . . . . . . . . . . . Stealth | -11 -10 -10 -7 -7 -5 -5 -5 -5 -5 -4 -4 -4 -4 -3 -3 -3 -3 -2 -2 -1 --------- Run | Yrd Mat Sub Rec Scr Fac Ext Cet Arc Hub Fac Upp Upp Zhi Pro Res Qua Sec Res Tes Acc Distress Signals 14 | . . . . . . 1 2 . 1 1 . . . . 2 1 2 . 1 3 Communications Jammed 32 | . . . . . . . . . 11 . . . . . 1 19 1 . . . Distress Signals 26 | . . . . . . . . . 5 . . . . . 1 19 1 . . . Times Spotted 568 | . 24 22 3 54 41 11 11 19 65 48 9 9 . 13 18 17 85 72 24 23 Peak Tracking Total 42 | . 4 5 2 14 6 11 5 4 10 9 4 5 . 9 5 6 42 13 19 7 Tactical Retreats 20 | . 1 6 1 1 . . . . . 2 . . . . . 3 5 1 . . Traps | -11 -10 -10 -7 -7 -5 -5 -5 -5 -5 -4 -4 -4 -4 -3 -3 -3 -3 -2 -2 -1 ------- Run | Yrd Mat Sub Rec Scr Fac Ext Cet Arc Hub Fac Upp Upp Zhi Pro Res Qua Sec Res Tes Acc Traps Triggered 12 | . 1 . . . 3 . . . . . . . . . 1 1 . 4 2 . Indirectly . | . . . . . . . . . . . . . . . . . . . . . Trap Hack Attempts . | . . . . . . . . . . . . . . . . . . . . . Triggered . | . . . . . . . . . . . . . . . . . . . . . Disarmed . | . . . . . . . . . . . . . . . . . . . . . Reprogrammed . | . . . . . . . . . . . . . . . . . . . . . Reused . | . . . . . . . . . . . . . . . . . . . . . Traps Extracted . | . . . . . . . . . . . . . . . . . . . . . Installed . | . . . . . . . . . . . . . . . . . . . . . Triggered . | . . . . . . . . . . . . . . . . . . . . . Machines | -11 -10 -10 -7 -7 -5 -5 -5 -5 -5 -4 -4 -4 -4 -3 -3 -3 -3 -2 -2 -1 ---------- Run | Yrd Mat Sub Rec Scr Fac Ext Cet Arc Hub Fac Upp Upp Zhi Pro Res Qua Sec Res Tes Acc Machines Disabled 152 | . 2 1 14 26 12 3 . 5 12 14 . . 1 8 7 16 12 5 11 3 Max in Single Turn 8 | . 1 1 1 3 2 2 . 2 4 8 . . 1 6 2 3 2 1 4 1 Garrison Access 4 | . . . . . 1 . . . 1 . . . . . 1 . . 1 . . Network Hub 1 | . . . . . . . . . 1 . . . . . . . . . . . Energy Cycler 2 | . . . . . . 1 . . . . . . . . . . . . . 1 Machines Repaired . | . . . . . . . . . . . . . . . . . . . . . Machines Dismantled . | . . . . . . . . . . . . . . . . . . . . . Machines Sabotaged . | . . . . . . . . . . . . . . . . . . . . . Overloaded Fab Kills . | . . . . . . . . . . . . . . . . . . . . . Hacking | -11 -10 -10 -7 -7 -5 -5 -5 -5 -5 -4 -4 -4 -4 -3 -3 -3 -3 -2 -2 -1 --------- Run | Yrd Mat Sub Rec Scr Fac Ext Cet Arc Hub Fac Upp Upp Zhi Pro Res Qua Sec Res Tes Acc Machines Accessed 32 | . 7 3 8 2 6 . 1 . 1 . . . . . 4 . . . . . Terminals 15 | . 7 . 2 . 2 . 1 . 1 . . . . . 2 . . . . . Fabricators 3 | . . . . . 3 . . . . . . . . . . . . . . . Repair Stations . | . . . . . . . . . . . . . . . . . . . . . Recycling Units 6 | . . . 6 . . . . . . . . . . . . . . . . . Scanalyzers 1 | . . . . . . . . . . . . . . . 1 . . . . . Garrison Access 2 | . . . . . 1 . . . . . . . . . 1 . . . . . Total Hacks 68 | . 13 3 14 10 13 . 2 . 1 . . . . . 12 . . . . . Successful 36 | . 6 3 6 10 7 . 1 . . . . . . . 3 . . . . . Failed 31 | . 7 . 8 . 6 . 1 . 1 . . . . . 8 . . . . . Catastrophic 4 | . 1 . 1 . . . 1 . . . . . . . 1 . . . . . Database Lockouts 1 | . . . . . . . . . . . . . . . 1 . . . . . Manual 37 | . 12 . 13 . 3 . 1 . 2 . . . . . 6 . . . . . Terminals 30 | . 13 . 3 . 5 . 2 . 1 . . . . . 6 . . . . . Fabricators 7 | . . . . . 7 . . . . . . . . . . . . . . . Repair Stations . | . . . . . . . . . . . . . . . . . . . . . Recycling Units 11 | . . . 11 . . . . . . . . . . . . . . . . . Scanalyzers 5 | . . . . . . . . . . . . . . . 5 . . . . . Garrison Access 2 | . . . . . 1 . . . . . . . . . 1 . . . . . Terminal Hacks 19 | . 1 3 . 10 3 . 1 . . . . . . . 1 . . . . . Record 4 | . . . . 4 . . . . . . . . . . . . . . . . Part Schematic 1 | . . . . . 1 . . . . . . . . . . . . . . . Robot Analysis 6 | . . . . 6 . . . . . . . . . . . . . . . . Prototype ID Bank 1 | . 1 . . . . . . . . . . . . . . . . . . . Open Door 3 | . . 1 . . 1 . 1 . . . . . . . . . . . . . Branch Access Points 2 | . . . . . 1 . . . . . . . . . 1 . . . . . Proto ID Catalog 1 | . . 1 . . . . . . . . . . . . . . . . . . Release Object 1 | . . 1 . . . . . . . . . . . . . . . . . . Fabricator Hacks 3 | . . . . . 3 . . . . . . . . . . . . . . . Network Status 1 | . . . . . 1 . . . . . . . . . . . . . . . Build 2 | . . . . . 2 . . . . . . . . . . . . . . . Repair Station Hacks . | . . . . . . . . . . . . . . . . . . . . . Recycling Unit Hacks . | . . . . . . . . . . . . . . . . . . . . . Scanalyzer 1 | . . . . . . . . . . . . . . . 1 . . . . . Retrieve Study 1 | . . . . . . . . . . . . . . . 1 . . . . . Garrison Access Hacks 2 | . . . . . 1 . . . . . . . . . 1 . . . . . Seal Access 2 | . . . . . 1 . . . . . . . . . 1 . . . . . Unauthorized Hacks 11 | . 5 . 6 . . . . . . . . . . . . . . . . . Terminals 5 | . 5 . . . . . . . . . . . . . . . . . . . Skim 5 | . 5 . . . . . . . . . . . . . . . . . . . Fabricators . | . . . . . . . . . . . . . . . . . . . . . Repair Stations . | . . . . . . . . . . . . . . . . . . . . . Recycling Units 6 | . . . 6 . . . . . . . . . . . . . . . . . Tunnel 6 | . . . 6 . . . . . . . . . . . . . . . . . Scanalyzers . | . . . . . . . . . . . . . . . . . . . . . Garrison Access . | . . . . . . . . . . . . . . . . . . . . . Data Cores Recovered 1 | . . . . . . . . . 1 . . . . . . . . . . . Used 1 | . . . . . . . . . 1 . . . . . . . . . . . Hacking Detections 18 | . 6 . 4 . 3 . 1 . 1 . . . . . 3 . . . . . Full Trace Events 1 | . . . . . . . 1 . . . . . . . . . . . . . Feedback Events 1 | . . . . . . . 1 . . . . . . . . . . . . . Corruption 1 | . . . . . . . 1 . . . . . . . . . . . . . Feedback Blocked . | . . . . . . . . . . . . . . . . . . . . . Robot Schematics Acquired . | . . . . . . . . . . . . . . . . . . . . . Robots Built . | . . . . . . . . . . . . . . . . . . . . . Authchips . | . . . . . . . . . . . . . . . . . . . . . Time . | . . . . . . . . . . . . . . . . . . . . . Total Robot Build Rating . | . . . . . . . . . . . . . . . . . . . . . Part Schematics Acquired 8 | . . . . . 8 . . . . . . . . . . . . . . . Parts Built 4 | . . . . . 4 . . . . . . . . . . . . . . . Authchips . | . . . . . . . . . . . . . . . . . . . . . Time 174 | . . . . . 174 . . . . . . . . . . . . . . . Total Part Build Rating 30 | . . . . . 30 . . . . . . . . . . . . . . . Part Studies Acquired 1 | . . . . . . . . . . . . . . . 1 . . . . . Parts Repaired . | . . . . . . . . . . . . . . . . . . . . . Time . | . . . . . . . . . . . . . . . . . . . . . Parts Recycled . | . . . . . . . . . . . . . . . . . . . . . Recycled Matter . | . . . . . . . . . . . . . . . . . . . . . Retrieved Matter . | . . . . . . . . . . . . . . . . . . . . . Retrieved Components . | . . . . . . . . . . . . . . . . . . . . . Parts Scanalyzed . | . . . . . . . . . . . . . . . . . . . . . Part Schematics Acquired . | . . . . . . . . . . . . . . . . . . . . . Parts Damaged . | . . . . . . . . . . . . . . . . . . . . . Bothacking | -11 -10 -10 -7 -7 -5 -5 -5 -5 -5 -4 -4 -4 -4 -3 -3 -3 -3 -2 -2 -1 ------------ Run | Yrd Mat Sub Rec Scr Fac Ext Cet Arc Hub Fac Upp Upp Zhi Pro Res Qua Sec Res Tes Acc Used RIF Installer . | . . . . . . . . . . . . . . . . . . . . . Robots Hacked . | . . . . . . . . . . . . . . . . . . . . . Non-combat . | . . . . . . . . . . . . . . . . . . . . . Combat . | . . . . . . . . . . . . . . . . . . . . . Robot Hacks Applied . | . . . . . . . . . . . . . . . . . . . . . Relay Couplers Released 3 | . . . . . . . . . 1 . . . . . 1 . . 1 . . Machine Destruction 3 | . . . . . . . . . 1 . . . . . 1 . . 1 . . Fabnet Peak Effective % . | . . . . . . . . . . . . . . . . . . . . . Robots Rewired 1 | . . . . . . . . . . . . . . . . . . . 1 . Allies Hacked 3 | . . . . . . . . . . . . . . . . . 1 . 2 . Hacks Repelled 1 | . . . . . . . . . . . . . . . . . 1 . . . Allies | -11 -10 -10 -7 -7 -5 -5 -5 -5 -5 -4 -4 -4 -4 -3 -3 -3 -3 -2 -2 -1 -------- Run | Yrd Mat Sub Rec Scr Fac Ext Cet Arc Hub Fac Upp Upp Zhi Pro Res Qua Sec Res Tes Acc Total Allies 92 | . 1 . . 1 . 1 5 . . . . . . . 3 . 12 35 4 30 Largest Group 7 | . 1 1 . 1 1 2 7 7 5 1 1 1 1 1 4 . 6 4 3 7 Highest-Rated Group 1077 | . 90 90 . 464 444 603 1077 1074 828 444 444 444 444 444 534 . 345 58 174 100 Highest-Rated Ally 464 | . 90 90 . 464 444 444 444 444 444 444 444 444 444 444 444 . 82 15 150 15 Total Orders . | . . . . . . . . . . . . . . . . . . . . . Ally Attacks 635 | . 19 7 . 82 77 13 44 31 132 74 . 8 . 16 31 . 50 44 7 . Total Damage 25484 | . 638 192 . 4408 3853 645 1644 1344 5151 3056 . 495 . 366 1104 . 1750 643 195 . Kills 152 | . 5 1 . 26 26 3 8 7 36 19 . 4 . . 7 . 6 3 1 . Allies Corrupted 3 | . . . . . . . . . . . . . . . 1 . . . 2 . Allies Melted 1 | . . . . . . . . . 1 . . . . . . . . . . . X0-1V1 Amusement Gains 615 | . 36 18 14 40 80 44 . . 80 38 5 . . 25 20 20 73 35 59 28 Average Entertainment 34 | . 25 14 13 18 8 88 41 28 55 82 53 34 . 11 27 35 77 89 63 89 Good Acts 86 | . 9 13 3 5 1 1 . . . 5 1 5 . 7 3 3 8 14 7 1 Bad Acts 62 | . 7 8 . 7 5 2 2 7 4 2 4 2 . 2 1 . 6 3 . . Intel | -11 -10 -10 -7 -7 -5 -5 -5 -5 -5 -4 -4 -4 -4 -3 -3 -3 -3 -2 -2 -1 ------- Run | Yrd Mat Sub Rec Scr Fac Ext Cet Arc Hub Fac Upp Upp Zhi Pro Res Qua Sec Res Tes Acc Active Infowar (turns) 11835 | . . 1037 566 7538 . . . . 552 71 . 293 194 564 472 328 220 . . . Optics 1778 | . . 723 22 1033 . . . . . . . . . . . . . . . . Sensors 1864 | . . . . 1864 . . . . . . . . . . . . . . . . Terrain 3559 | . . . . 3559 . . . . . . . . . . . . . . . . Structural 314 | . . 314 . . . . . . . . . . . . . . . . . . Traps 116 | . . . . 116 . . . . . . . . . . . . . . . . Seismic 915 | . . . . 915 . . . . . . . . . . . . . . . . Decoding 291 | . . . 291 . . . . . . . . . . . . . . . . . Jamming 3594 | . . . 253 647 . . . . 552 71 . 293 194 564 472 328 220 . . . ECM 101 | . . . . 101 . . . . . . . . . . . . . . . . Robot Analysis Total 6 | . . . . 6 . . . . . . . . . . . . . . . . Derelict Logs Recovered 4 | . . 2 . . . . . . . . 2 . . . . . . . . . Drone Launches . | . . . . . . . . . . . . . . . . . . . . . Drone Recoveries . | . . . . . . . . . . . . . . . . . . . . . Decoded 0b10 Intel 9 | . . . 9 . . . . . . . . . . . . . . . . . Items 9 | . . . 9 . . . . . . . . . . . . . . . . . Exploration | -11 -10 -10 -7 -7 -5 -5 -5 -5 -5 -4 -4 -4 -4 -3 -3 -3 -3 -2 -2 -1 ------------- Run | Yrd Mat Sub Rec Scr Fac Ext Cet Arc Hub Fac Upp Upp Zhi Pro Res Qua Sec Res Tes Acc Turns Passed 22819 | 40 1574 2120 1060 10428 1179 280 280 678 563 534 607 564 194 564 472 328 411 420 288 235 Spaces Moved 10100 | 33 733 1370 605 2220 718 198 160 295 311 272 445 434 133 341 328 300 344 319 375 166 Core 329 | 33 291 . . . . . . . . . . . . . . . 5 . . . Treads 2 | . 2 . . . . . . . . . . . . . . . . . . . Legs 9606 | . 277 1370 605 2220 718 198 160 295 311 272 445 434 133 341 328 300 339 319 375 166 Wheels . | . . . . . . . . . . . . . . . . . . . . . Hover . | . . . . . . . . . . . . . . . . . . . . . Flight 163 | . 163 . . . . . . . . . . . . . . . . . . . Fastest Speed 30 | 50 40 130 130 122 82 94 117 94 87 94 94 117 117 118 98 82 30 30 30 90 Average Speed 117 | 116 101 132 145 130 114 114 117 116 130 122 116 117 117 118 113 93 86 89 57 90 Slowest Speed 250 | 150 190 140 250 135 122 117 117 117 200 189 117 117 118 118 118 102 102 90 90 90 Overloaded Moves 573 | . . . . . 79 21 . 12 211 15 3 . . . 3 121 108 . . . Propulsion Burnouts . | . . . . . . . . . . . . . . . . . . . . . Robots Hopped 1 | . 1 . . . . . . . . . . . . . . . . . . . Potential Cave-ins 9 | . . . . . . . . . 3 . . . . . . . 6 . . . Cave-ins Triggered . | . . . . . . . . . . . . . . . . . . . . . Teleports 37 | . . . . . . . . . . . . . . . . . 2 13 15 7 Exploration Rate (%) 54 | 3 89 83 98 90 19 41 65 97 46 12 76 75 59 64 18 55 49 22 67 11 Regions Visited 20 Branch Regions 14 Pre-discovered Areas 8 | . 1 1 6 . . . . . . . . . . . . . . . . . Known Exits Taken 7 | . . 1 . . 1 . . . . 1 . . . 1 1 . 1 1 . . Unknown Exits Taken 13 | 1 1 . 1 1 . 1 1 1 1 . 1 1 1 . . 1 . . 1 . Scrap Searched 16 | . . 2 . 4 . . . . . . 4 3 . 3 . . . . . . Spaces Dug 73 | . 1 . . 2 26 . . . 1 1 . . . 3 3 1 13 10 10 2 Terrain Destroyed 5704 | . 18 . . 393 249 99 247 69 606 508 732 231 . 396 509 211 583 555 113 185 Melee 3 | . 1 . . 2 . . . . . . . . . . . . . . . . Projectile 143 | . . . . . 38 . . 4 4 2 . 1 . 9 10 3 19 24 16 13 AOE 5558 | . 17 . . 391 211 99 247 65 602 506 732 230 . 387 499 208 564 531 97 172 Terrain Rammed . | . . . . . . . . . . . . . . . . . . . . . Walls Destroyed . | . . . . . . . . . . . . . . . . . . . . . Machines Disabled . | . . . . . . . . . . . . . . . . . . . . . Actions | -11 -10 -10 -7 -7 -5 -5 -5 -5 -5 -4 -4 -4 -4 -3 -3 -3 -3 -2 -2 -1 --------- Run | Yrd Mat Sub Rec Scr Fac Ext Cet Arc Hub Fac Upp Upp Zhi Pro Res Qua Sec Res Tes Acc Total 20049 | 34 1477 1590 714 9655 968 239 230 583 407 409 499 478 162 455 379 322 402 381 437 228 Wait 8718 | . 670 76 36 7300 101 22 48 189 17 79 29 18 12 46 11 1 6 11 7 39 Move 10079 | 32 730 1369 604 2219 717 197 159 294 310 271 444 433 132 340 327 299 343 318 375 166 Hop 1 | . 1 . . . . . . . . . . . . . . . . . . . Pick Up 17 | . . 3 2 1 2 . . . . . . . 1 2 . 1 . . 5 . Fast Attach 89 | 2 12 2 1 15 7 1 1 11 2 6 . 2 5 1 1 2 12 . 6 . Attach 3 | . . . . 1 1 . . . . . . . . . . . . 1 . . Detach 4 | . . . . 1 1 . . . . 1 . . . . . . . . 1 . Swap 11 | . . 1 1 1 . . . . . 1 1 . . 3 1 . 1 1 . . Drop 69 | . 4 4 3 12 6 . . 6 . 5 1 1 4 4 2 2 2 1 12 . Fire 791 | . 33 111 59 74 101 11 22 44 60 42 18 7 8 40 35 17 31 43 12 23 Melee 40 | . 16 . 8 14 2 . . . . . . . . . . . . . . . Ram . | . . . . . . . . . . . . . . . . . . . . . Kick 7 | . 1 . . . . . . . . . . . . . . . 3 . 3 . Crush . | . . . . . . . . . . . . . . . . . . . . . Escape Stasis . | . . . . . . . . . . . . . . . . . . . . . Rewire 10 | . . . . . . . . . . . . . . . . . 4 . 6 . Trap . | . . . . . . . . . . . . . . . . . . . . . Miscellaneous 210 | . 10 24 . 17 30 8 . 39 18 4 6 17 . 19 2 . . 6 10 . Route ------- -11/Scrapyard -10/Materials (discovered 4 exits: *Mat x2 / [*Min] / *Sub) -10/Subcaves (discovered 3 exits: Mat x2 / *Rec) -7/Recycling (discovered 2 exits: *Fac / *Scr) -7/Scraptown -5/Factory (discovered 4 exits: Upp x2 / *Ext x2) -5/Extension (discovered 3 exits: [*Fac x2] / *Cet) -5/Cetus (discovered 2 exits: [*Fac] / [*Arc]) -5/Archives (discovered 3 exits: [*Fac] / *Hub x2) -5/Hub_04(d) (discovered 2 exits: [*Fac x2]) -4/Factory (discovered 3 exits: Res / *Upp x2) -4/Upper Caves -4/Upper Caves (discovered 2 exits: *Res / [*Zhi]) -4/Zhirov -3/Proximity Caves -3/Research (discovered 4 exits: Res / Arm / *Qua x2) -3/Quarantine (discovered 2 exits: [*Sec] / [*Frg]) -3/Section 7 -2/Research -2/Testing -1/Access History --------- Turn | Location | Event 10 | -11/Scrapyard | Discovered new exit (range 15) 41 | -11/Scrapyard | Entered Materials 109 | -10/Materials | Discovered new exit (range 15) 283 | -10/Materials | Discovered new exit (range 8) 307 | -10/Materials | Build established: Mutant 356 | -10/Materials | Made a sacrifice at D.C.S.S. Altar Unit 356 | -10/Materials | Forcibly received Sfc. Transmogifier from X0-1V1 356 | -10/Materials | Reached level 2 356 | -10/Materials | Reached level 3 356 | -10/Materials | Upgraded with Utility slot (x1) 370 | -10/Materials | Discovered new exit (range 12) 444 | -10/Materials | X0-1V1 activates XOMVISION 606 | -10/Materials | X0-1V1 caused items to flee you 732 | -10/Materials | Items stopped fleeing you 770 | -10/Materials | Discovered new exit (range 3) 774 | -10/Materials | X0-1V1 sent hostile G-34 Mercenary (x3) 838 | -10/Materials | Upgraded with Utility slot (x1) 1040 | -10/Materials | X0-1V1 tapped a No Entrance sign 1040 | -10/Materials | Reached level 4 1041 | -10/Materials | X0-1V1 activates XOMVISION 1074 | -10/Materials | X0-1V1 sent hostile G-34 Mercenary (x3) 1091 | -10/Materials | X0-1V1 sent allied H-61 Shepherd (x1) 1094 | -10/Materials | Core integrity fell below 50% 1144 | -10/Materials | Identified exit to Materials 1144 | -10/Materials | X0-1V1 revealed exit location to -9/Materials 1307 | -10/Materials | Upgraded with Power slot (x1) 1307 | -10/Materials | Upgraded with Propulsion slot (x2) 1307 | -10/Materials | Upgraded with Utility slot (x3) 1319 | -10/Materials | Learned location of 2 exits from Mines 1399 | -10/Materials | X0-1V1 added 0b10 threat records associated with you (considerable) 1452 | -10/Materials | Learned 2 Mines zone layouts 1544 | -10/Materials | Learned location of 2 exits from Subcaves 1574 | -10/Materials | Learned location of 2 exits from Mines 1603 | -10/Materials | Core integrity restored by X0-1V1 (+94) 1613 | -10/Materials | Learned location of Subcaves (-10) 1615 | -10/Materials | Entered Subcaves 1615 | -10/Subcaves | Accompanied by 1 ally 1616 | -10/Subcaves | Identified exit to Materials 1617 | -10/Subcaves | Identified exit to Recycling 1617 | -10/Subcaves | Reached level 5 1734 | -10/Subcaves | A swath of the cavern ceiling suddenly collapsed 1814 | -10/Subcaves | X0-1V1 activates XOMVISION 1998 | -10/Subcaves | Found SUBCON Basin 2296 | -10/Subcaves | Shifting Twisted Machinery released Sub. Beam Cannon 2297 | -10/Subcaves | Shifting Twisted Machinery released Multitool 2362 | -10/Subcaves | Learned location of Zion (-6) 2385 | -10/Subcaves | Learned Materials non-interactive machine intel 2408 | -10/Subcaves | Visited 4L-MR0's lab 2484 | -10/Subcaves | X0-1V1 activates XOMVISION 2778 | -10/Subcaves | Core integrity fell below 20% 2843 | -10/Subcaves | Shifting Twisted Machinery released Shrapnel Trap 3004 | -10/Subcaves | X0-1V1 caused items to flee you 3085 | -10/Subcaves | A swath of the cavern ceiling suddenly collapsed 3139 | -10/Subcaves | Shifting Twisted Machinery released Mak. Spear 3139 | -10/Subcaves | Shifting Twisted Machinery released Flamer 3217 | -10/Subcaves | Core integrity restored by X0-1V1 (+154) 3292 | -10/Subcaves | Items stopped fleeing you 3348 | -10/Subcaves | X0-1V1 activates XOMVISION 3586 | -10/Subcaves | Ambushed by Subdweller buried in earth 3610 | -10/Subcaves | X0-1V1 sent you into danger 3735 | -10/Subcaves | Entered Recycling 3737 | -7/Recycling | Reached level 6 4118 | -7/Recycling | Reached level 7 4448 | -7/Recycling | Discovered new exit (range 6) 4620 | -7/Recycling | X0-1V1 downgraded hostiles (x1) 4747 | -7/Recycling | Scanned before Scraplab entrance 4765 | -7/Recycling | Entered Scraplab 4780 | -7/Recycling | Reached level 8 4794 | -7/Recycling | Discovered new exit (range 2) 4795 | -7/Recycling | Entered Scraptown 5052 | -7/Scraptown | Visited UFD Registry 5052 | -7/Scraptown | Registered with UFD as "Laserpod" 5101 | -7/Scraptown | Visited Curators Association 5148 | -7/Scraptown | Visited Science Guys 5179 | -7/Scraptown | Visited Scrapoid Pod Storage 5201 | -7/Scraptown | Visited Observation Area 5213 | -7/Scraptown | Visited Scrapoid Research Area 5233 | -7/Scraptown | Visited Analyses Database 5262 | -7/Scraptown | Visited Research Penetration Think Tank 5311 | -7/Scraptown | Visited Scrap Suit Storage 5330 | -7/Scraptown | Visited Abandonware Association 5348 | -7/Scraptown | Learned abandonware demo "SHUTEYE.EXE" 5348 | -7/Scraptown | Learned abandonware demo "POISON.EXE" 12715 | -7/Scraptown | Upgraded with Propulsion slot (x1) 12715 | -7/Scraptown | Upgraded with Weapon slot (x1) 12844 | -7/Scraptown | Discovered new exit (range 9) 12898 | -7/Scraptown | Visited Symbiants 12921 | -7/Scraptown | Visited Junk Repository 12983 | -7/Scraptown | Heard Great Nut preacher, LISTEN AND RECITE! 12993 | -7/Scraptown | Visited CPS Storage 13013 | -7/Scraptown | Visited Comm Corps 13072 | -7/Scraptown | Visited Red Mages 13474 | -7/Scraptown | Discovered new exit (range 5) 13600 | -7/Scraptown | Visited The Evicted 13874 | -7/Scraptown | X0-1V1 brought Wyrm Statue to life 13874 | -7/Scraptown | Attacked by Scraptown defenders 13966 | -7/Scraptown | X0-1V1 tapped a No Entrance sign 13966 | -7/Scraptown | Reached level 9 14043 | -7/Scraptown | Reached level 10 14048 | -7/Scraptown | Weapon slot count temporarily expanded by X0-1V1 (+2) 14053 | -7/Scraptown | Allies destroyed Triborg 14080 | -7/Scraptown | X0-1V1 caused items to flee you 14081 | -7/Scraptown | Destroyed 9 combat bots 14243 | -7/Scraptown | Items stopped fleeing you 14443 | -7/Scraptown | Destroyed 25 combat bots 14467 | -7/Scraptown | Allies destroyed Optimus 14501 | -7/Scraptown | Destroyed 12 combat bots 14532 | -7/Scraptown | Weapon slot count reverted to normal (-2) 14716 | -7/Scraptown | Found DM-GVY's Chainsaw 14717 | -7/Scraptown | Destroyed 9 combat bots 14731 | -7/Scraptown | Found Potential Leg 14789 | -7/Scraptown | X0-1V1 sent you into danger 14885 | -7/Scraptown | Found Prototype Special Weapon 14885 | -7/Scraptown | Identified System Spiker 15119 | -7/Scraptown | X0-1V1 vaporized surrounding terrain (radius 20) 15217 | -7/Scraptown | X0-1V1 vaporized surrounding terrain (radius 20) 15223 | -7/Scraptown | Entered Factory 15223 | -5/Factory | Accompanied by 1 ally 15224 | -5/Factory | Core integrity fell below 50% 15225 | -5/Factory | Reached level 11 15252 | -5/Factory | X0-1V1 added 0b10 threat records associated with you (considerable) 15254 | -5/Factory | Identified exit to Upper Caves 15254 | -5/Factory | Identified exit to Extension 15389 | -5/Factory | Tech Extrapolator generated special schematic: Deep Structural Scanner 15402 | -5/Factory | Reached level 12 15523 | -5/Factory | First assault squad dispatched 15533 | -5/Factory | Build established: Hacker-Mutant 15561 | -5/Factory | Reached level 13 15580 | -5/Factory | System corruption reached 10% 15595 | -5/Factory | Tech Extrapolator generated special schematic: Energy Deflector 15668 | -5/Factory | Tech Extrapolator generated special schematic: Mak. Core Shielding 15723 | -5/Factory | Tech Extrapolator generated special schematic: Machine Rigger 15811 | -5/Factory | Reached level 14 15847 | -5/Factory | Fabricated Enh. Nova Cannon (x2) 15947 | -5/Factory | Fabricated Imp. Shock Absorption System? 16001 | -5/Factory | Upgraded with Utility slot (x1) 16095 | -5/Factory | Reached level 15 16362 | -5/Factory | High security lockdown imminent 16402 | -5/Factory | Entered Extension 16402 | -5/Extension | Accompanied by 1 ally 16404 | -5/Extension | Reached level 16 16408 | -5/Extension | X0-1V1 dreamt of freedom 16410 | -5/Extension | Disrupted transfer network 16422 | -5/Extension | Rescued a captive Derelict 16424 | -5/Extension | Rescued a captive Derelict 16428 | -5/Extension | Rescued a captive Derelict 16429 | -5/Extension | Rescued a captive Derelict 16439 | -5/Extension | Rescued a captive Derelict 16494 | -5/Extension | Spotted B-75 Beast 16506 | -5/Extension | Reached level 17 16514 | -5/Extension | Allies destroyed B-75 Beast 16522 | -5/Extension | Rescued A7 16523 | -5/Extension | Discovered new exit (range 16) 16524 | -5/Extension | Spotted B-75 Beast 16531 | -5/Extension | Destroyed B-75 Beast 16552 | -5/Extension | Destroyed 10 combat bots 16648 | -5/Extension | Discovered new exit (range 17) 16650 | -5/Extension | Discovered new exit (range 16) 16682 | -5/Extension | Entered Cetus 16682 | -5/Cetus | Accompanied by 2 allies (A7) 16684 | -5/Cetus | Reached level 18 16687 | -5/Cetus | Acquired a Cetus Manufacturing Module code from A7 16697 | -5/Cetus | Spotted Cetus Guard 16697 | -5/Cetus | Spotted Cetus Guard 16700 | -5/Cetus | Spotted Cetus Guard 16703 | -5/Cetus | Spotted Cetus Guard 16705 | -5/Cetus | Allies destroyed Cetus Guard 16709 | -5/Cetus | Allies destroyed Cetus Guard 16713 | -5/Cetus | Allies destroyed Cetus Guard 16719 | -5/Cetus | Allies destroyed Cetus Guard 16773 | -5/Cetus | Started Cetus Manufacturing Module 16786 | -5/Cetus | X0-1V1 caused items to flee you 16791 | -5/Cetus | Reached level 19 16798 | -5/Cetus | Manufactured an Enhanced Grunt 16813 | -5/Cetus | Discovered new exit (range 17) 16823 | -5/Cetus | Manufactured an Enhanced Grunt 16848 | -5/Cetus | Manufactured an Enhanced Grunt 16852 | -5/Cetus | Spotted Cetus Guard 16852 | -5/Cetus | Spotted Cetus Guard 16860 | -5/Cetus | Allies destroyed Cetus Guard 16860 | -5/Cetus | Spotted Cetus Guard 16862 | -5/Cetus | Spotted Cetus Guard 16863 | -5/Cetus | Destroyed Cetus Guard 16869 | -5/Cetus | Allies destroyed Cetus Guard 16873 | -5/Cetus | Manufactured an Enhanced Grunt 16876 | -5/Cetus | Allies destroyed Cetus Guard 16876 | -5/Cetus | Discovered new exit (range 17) 16884 | -5/Cetus | Reached level 20 16884 | -5/Cetus | Met Revision 17 16898 | -5/Cetus | Manufactured an Enhanced Grunt 16962 | -5/Cetus | Entered Archives 16962 | -5/Archives | Accompanied by 7 allies (A7) 17013 | -5/Archives | Discovered new exit (range 14) 17046 | -5/Archives | Discovered new exit (range 15) 17070 | -5/Archives | Reached level 21 17173 | -5/Archives | System corruption reached 30% 17194 | -5/Archives | Build established: Commander-Mutant 17383 | -5/Archives | Discovered new exit (range 13) 17640 | -5/Archives | Entered Hub_04(d) 17640 | -5/Hub_04(d) | Accompanied by 5 allies 17642 | -5/Hub_04(d) | Reached level 22 17650 | -5/Hub_04(d) | Upgraded with Utility slot (x1) 17748 | -5/Hub_04(d) | Build established: Hacker-Mutant 17776 | -5/Hub_04(d) | Reached level 23 17785 | -5/Hub_04(d) | Discovered new exit (range 16) 17802 | -5/Hub_04(d) | Destroyed 15 combat bots 17825 | -5/Hub_04(d) | X0-1V1 redirected Transport squads to designated parking area 17858 | -5/Hub_04(d) | Upgraded with Utility slot (x1) 17917 | -5/Hub_04(d) | Discovered new exit (range 9) 17940 | -5/Hub_04(d) | First assault squad dispatched 17994 | -5/Hub_04(d) | High security lockdown imminent 18029 | -5/Hub_04(d) | Network Hub disabled 18044 | -5/Hub_04(d) | Reached level 24 18049 | -5/Hub_04(d) | Spotted Lightning 18057 | -5/Hub_04(d) | Destroyed Lightning 18074 | -5/Hub_04(d) | High security lockdown engaged 18080 | -5/Hub_04(d) | Spotted Lightning 18106 | -5/Hub_04(d) | Allies destroyed Lightning 18203 | -5/Hub_04(d) | Entered Factory 18203 | -4/Factory | Accompanied by 1 ally 18219 | -4/Factory | Destroyed 13 combat bots 18247 | -4/Factory | X0-1V1 sent you to a vault 18260 | -4/Factory | Found Prototype Launcher 18260 | -4/Factory | Identified Tactical Quantum Warhead 18294 | -4/Factory | Reached level 25 18378 | -4/Factory | Identified exit to Upper Caves 18378 | -4/Factory | X0-1V1 revealed exit location to -4/Upper Caves 18449 | -4/Factory | Discovered exit to Upper Caves (range 16) 18453 | -4/Factory | First assault squad dispatched 18461 | -4/Factory | High security lockdown imminent 18541 | -4/Factory | High security lockdown engaged 18556 | -4/Factory | Identified exit to Research 18556 | -4/Factory | X0-1V1 revealed exit location to -3/Research 18685 | -4/Factory | Reached level 26 18737 | -4/Factory | Entered Upper Caves 18737 | -4/Upper Caves | Accompanied by 1 ally 18774 | -4/Upper Caves | X0-1V1 vaporized surrounding terrain (radius 17) 19012 | -4/Upper Caves | Spotted B-86 Titan 19021 | -4/Upper Caves | Destroyed B-86 Titan 19102 | -4/Upper Caves | Learned Research terminal intel 19117 | -4/Upper Caves | Learned 4 Research zone layouts 19323 | -4/Upper Caves | Discovered new exit (range 5) 19344 | -4/Upper Caves | Entered another Upper Caves area 19344 | -4/Upper Caves | Accompanied by 1 ally 19399 | -4/Upper Caves | Discovered exit to Research (range 19) 19553 | -4/Upper Caves | X0-1V1 activates XOMVISION 19662 | -4/Upper Caves | Upgraded with Power slot (x1) 19742 | -4/Upper Caves | X0-1V1 activates XOMVISION 19818 | -4/Upper Caves | System corruption reached 10% 19878 | -4/Upper Caves | Discovered new exit (range 20) 19908 | -4/Upper Caves | Entered Zhirov 19908 | -4/Zhirov | Accompanied by 1 ally 19908 | -4/Zhirov | Discovered new exit (range 3) 19910 | -4/Zhirov | Reached level 27 19930 | -4/Zhirov | Met Zhirov 19958 | -4/Zhirov | Found Alien Artifact 19958 | -4/Zhirov | Identified Integrated Dissipator 19958 | -4/Zhirov | Installed Integrated Dissipator, increased core heat dissipation (+20) 19991 | -4/Zhirov | Upgraded with Propulsion slot (x1) 20047 | -4/Zhirov | Found Alien Artifact 20102 | -4/Zhirov | Entered Proximity Caves 20102 | -3/Proximity Caves | Accompanied by 1 ally 20102 | -3/Proximity Caves | Spotted B-86 Titan 20114 | -3/Proximity Caves | Destroyed B-86 Titan 20154 | -3/Proximity Caves | X0-1V1 activates XOMVISION 20203 | -3/Proximity Caves | X0-1V1 revealed exit location to -3/Research 20277 | -3/Proximity Caves | Attracted the attention of an 0b10 checkpoint 20401 | -3/Proximity Caves | X0-1V1 vaporized surrounding terrain (radius 17) 20581 | -3/Proximity Caves | Attracted the attention of an 0b10 base 20589 | -3/Proximity Caves | Reached level 28 20617 | -3/Proximity Caves | Destroyed 14 combat bots 20666 | -3/Proximity Caves | Entered Research 20666 | -3/Research | Accompanied by 1 ally 20668 | -3/Research | Loaded intel: 24 terminal locations 20736 | -3/Research | Identified exit to Armory 20736 | -3/Research | Identified exit to Quarantine 20823 | -3/Research | Central database locked down 20827 | -3/Research | Spotted B-86 Titan 20857 | -3/Research | Destroyed B-86 Titan 20866 | -3/Research | Revision forces began assault on 0b10 20881 | -3/Research | Identified exit to Research 20881 | -3/Research | X0-1V1 revealed exit location to -2/Research 20923 | -3/Research | Met up with Revision 17++ 21053 | -3/Research | Reached level 29 21056 | -3/Research | X0-1V1 sent you to a vault 21067 | -3/Research | System corruption reached 10% 21101 | -3/Research | Spotted B-90 Cyclops 21114 | -3/Research | Destroyed B-90 Cyclops 21115 | -3/Research | Core integrity fell below 50% 21136 | -3/Research | Lost 5 allies 21138 | -3/Research | Entered Quarantine 21225 | -3/Quarantine | Found Alien Artifact 21225 | -3/Quarantine | Identified Core Reset Matrix 21225 | -3/Quarantine | Identified Transdimensional Reconstructor 21225 | -3/Quarantine | Used Core Reset Matrix 21229 | -3/Quarantine | Detected hypermatrix surge 21229 | -3/Quarantine | Sensed 12 artifacts in vicinity 21261 | -3/Quarantine | Found Subatomic Replicator 21288 | -3/Quarantine | Cryocooling Duct disabled 21303 | -3/Quarantine | Ambient heat levels rising (+20) 21303 | -3/Quarantine | Non-combat units ordered to evacuate 21401 | -3/Quarantine | Spotted Fortress 21461 | -3/Quarantine | Discovered new exit (range 6) 21461 | -3/Quarantine | Discovered new exit (range 7) 21462 | -3/Quarantine | X0-1V1 put everyone to sleep 21466 | -3/Quarantine | Entered Section 7 21467 | -3/Section 7 | Detected hypermatrix surge 21467 | -3/Section 7 | Sensed 18 artifacts in vicinity 21468 | -3/Section 7 | Reached level 30 21563 | -3/Section 7 | Core integrity fell below 20% 21566 | -3/Section 7 | X0-1V1 added 0b10 threat records associated with you (minor) 21576 | -3/Section 7 | X0-1V1 sent allied Cetus Guard (x1) 21579 | -3/Section 7 | Found Integrated Reactor 21579 | -3/Section 7 | Installed Integrated Reactor, increased core energy generation (+10) 21601 | -3/Section 7 | Spotted Alpha 7 21613 | -3/Section 7 | Scanned by Researcher 21634 | -3/Section 7 | X0-1V1 whisked you away to safety 21686 | -3/Section 7 | Released all parts (18) 21692 | -3/Section 7 | Integrated with Sigix Exoskeleton 21693 | -3/Section 7 | Upgraded with Weapon slot (x1) 21716 | -3/Section 7 | First assault squad dispatched 21738 | -3/Section 7 | X0-1V1 sent you to a vault 21739 | -3/Section 7 | Discovered exit to Research (range 14) 21755 | -3/Section 7 | Spotted S7 Guard 21768 | -3/Section 7 | Found Core Membrane 21768 | -3/Section 7 | Installed Core Membrane, gained immunity to corruption 21774 | -3/Section 7 | Spotted B-86 Titan 21799 | -3/Section 7 | Spotted S7 Guard 21806 | -3/Section 7 | Used Subatomic Replicator to replicate Navigation Efficiency Matrix 21808 | -3/Section 7 | Found Navigation Efficiency Matrix 21808 | -3/Section 7 | Installed Navigation Efficiency Matrix, process failed with unexpected side effects 21810 | -3/Section 7 | Installed Navigation Efficiency Matrix, process failed with unexpected side effects 21822 | -3/Section 7 | X0-1V1 turns hostiles against one another 21822 | -3/Section 7 | P-80 Master assimilated hostile G-67 Veteran 21825 | -3/Section 7 | Spotted Striker 21825 | -3/Section 7 | Found Integrity Redistributor 21825 | -3/Section 7 | Used Integrity Redistributor, redistributed integrity to core (+569) 21826 | -3/Section 7 | Sigix Exoskeleton integrity reduced to 80% 21827 | -3/Section 7 | Sigix Exoskeleton integrity reduced to 60% 21828 | -3/Section 7 | Sigix Exoskeleton integrity reduced to 40% 21837 | -3/Section 7 | Intercept squad dispatched 21837 | -3/Section 7 | Spotted Tracker 21840 | -3/Section 7 | Spotted Tracker 21870 | -3/Section 7 | Lost 5 allies 21877 | -3/Section 7 | Entered Research 21879 | -2/Research | Reached level 31 21882 | -2/Research | Emitted hypermatrix ping 21887 | -2/Research | Assembled emerged from beneath the floor 21891 | -2/Research | X0-1V1 foreshadows a heat wave 21914 | -2/Research | Assembled emerged from beneath the floor 21933 | -2/Research | Identified exit to Testing 21933 | -2/Research | X0-1V1 revealed exit location to -2/Testing 21984 | -2/Research | Build established: Alien-Sigix 21986 | -2/Research | Assembled emerged from beneath the floor 21999 | -2/Research | Core integrity fell below 50% 22033 | -2/Research | Ambient heat levels rising (+10) 22062 | -2/Research | Assembled emerged from beneath the floor 22070 | -2/Research | Garrison activated, responded to threat 22094 | -2/Research | Reached level 32 22141 | -2/Research | Destroyed 21 combat bots 22208 | -2/Research | Ambient heat levels rising (+10) 22214 | -2/Research | Core integrity fell below 20% 22232 | -2/Research | Destroyed 9 combat bots 22247 | -2/Research | Assembled emerged from beneath the floor 22256 | -2/Research | Intercept squad dispatched 22257 | -2/Research | Spotted Tracker 22266 | -2/Research | Destroyed Tracker 22297 | -2/Research | Entered Testing 22299 | -2/Testing | Reached level 33 22300 | -2/Testing | Destroyed 8 combat bots 22310 | -2/Testing | Found Tactical Quantum Warhead 22369 | -2/Testing | X0-1V1 sent you to a vault 22396 | -2/Testing | Found Prototype Ballistic Cannon 22396 | -2/Testing | Identified Perforator 22447 | -2/Testing | Found Prototype Launcher 22447 | -2/Testing | Identified Z-bomb Delivery System 22456 | -2/Testing | X0-1V1 put everyone to sleep 22518 | -2/Testing | Rewired PH-DEG7SCXDLO 22577 | -2/Testing | Discovered new exit (range 5) 22585 | -2/Testing | Spotted Striker 22585 | -2/Testing | Entered Access 22586 | -1/Access | Emitted hypermatrix ping 22586 | -1/Access | Core integrity fell below 50% 22587 | -1/Access | Reached level 34 22591 | -1/Access | Assembled emerged from beneath the floor 22612 | -1/Access | Assembled emerged from beneath the floor 22649 | -1/Access | Assembled emerged from beneath the floor 22707 | -1/Access | Energy Cycler disabled 22726 | -1/Access | Assembled emerged from beneath the floor 22770 | -1/Access | Destroyed 9 combat bots 22817 | -1/Access | Core integrity fell below 20% 22820 | -1/Access | Self-destructed Last Messages --------------- 22813_ Acquired 3 matter. 22814_ Navigation matrix triggers involuntary quantum shift. 22814_ X0-1V1 is mildly amused. 22814_ Cld. Antimatter Reactor blasted off. 22814_ X0-1V1 is interested. 22814_ Knocked back. 22815_ Acquired 2 matter. 22815_ U-05 Engineer lays Concrete. 22816_ H-81 Overseer calls for reinforcements. 22816_ ALERT: Hostile activity reported, dispatching reinforcements to area. 22816_ Knocked back. 22817_ Acquired 5 matter. 22817_ U-05 Engineer builds a Wall. 22817_ R-10 Processor destroyed. 22817_ U-05 Engineer builds a Wall. 22818_ Acquired 27 matter. 22819_ Quantum Shear penetrates H-81 Overseer. 22820_ Knocked back. Map ----- +----------------------------------------------------+ | ???????????????????????????????# ########## | | ???????????????????????????????# ######## # | | ?????????????????????????????### + | | ???????????????????????????? ### # | | ?????????????????????????? ### # | | ????????????????????????? ### + | | ???????????????????????? ####+####### !! | | ??????????????????????? # # !! | | ??????????????????????? # + != | | ????????????????????########+# ## | | ?????????????????#### # # ! ## | | ???????????????? !+ # # ## | | ?????????????? # "" # ## | | ????????????? = # "" # | | ???????????? " # "" !] | | ???????????# """ # S ] | | ???????????# """ # "" ] | | ?????????? # " # "" # | | ????????? # ! # "" * [ = ! | | ????????? # # * !! | | ????????? ####+##### * * ! "########## | | ???????? #### ########### ########## | | ???????? #### ############u % ########## | | ???????? [[= ########### | | ???????? k u [ ########### | | ???????? ############ X## ########### | | ??????? ##########"# ;## ### | | ??????? # #u # # ### | | ???????? # # *; # """ ### | | ???????? # # ; + """"### | | ???????? # # # # "F""### | | ???????? # ! ]!!# ; # ""### | | ???????? + ]!!# + # """### | | ????????? # !!!# # # "" ### | | ?????????# ########## ######## ### | | ?????????# ########## ######## ### | | ?????????? H ######## ### | | ??????????? ######## ### | | ???????????###+##### ##########"###+???????? | | ???????????? ### ##;###### ??????????? | | ????????????? ### # ## ???????????? | | ?????????????? ### # ## ???????????? | | ???????????????? ### # ## ?? ???????????? | | ?????????????????### # ## ??? ???????????? | | ???????????????????? # ]##??????????????????? | | ??????????????????????? ???????????????????????? | | ??????????????????????? ????????????????????????? | | ???????????????????????##????????????????????????? | | ?????????????????????????????????????????????????? | | ?????????????????????????????????????????????????? | +----------------------------------------------------+ Best States ------------- Heat Dissipation 173 Coolant Potential 100 Energy Generation 124 Energy Capacity 2495 Matter Stores 900 Matter Capacity 1100 Sight Range 26 Robot Scan Range 19 Terrain Scan Range 24 Terrain Scan Density 210 ECM Strength 3 Jamming Range 16 Additional Mass Support 25 Base Temperature (-) 150 EM Shielding 3 Corruption Block 15 Armor Coverage 600 Resistance: KI 50 Resistance: TH 100 Resistance: EX 50 Resistance: EM 50 Resistance: I 50 Resistance: S 50 Resistance: P 50 Core Shielding 40 Utility Shielding 33 Weapon Shielding 33 Phase Shifting 15 Evasion (%) 84 Targeting Accuracy 10 Melee Accuracy 8 Target Analysis 6 Recoil Reduction 1 Matter Filtering 50 Salvage Targeting 4 Offensive Hacking 20 Defensive Hacking 11 Item Schematics ----------------- None Robot Schematics ------------------ None Fabricated ------------ Enh. Nova Cannon | x2 | -5/Factory | Preloaded Imp. Shock Absorption System | x2 | -5/Factory | Preloaded Repaired ---------- Nothing Studied --------- None Alien Tech Used ----------------- Integrated Dissipator Core Reset Matrix Integrated Reactor Sigix Exoskeleton Sigix Sheargun Core Membrane Subatomic Replicator Navigation Efficiency Matrix Integrity Redistributor Achievements -------------- None Challenges ------------ None RPGLIKE | -11 -10 -10 -7 -7 -5 -5 -5 -5 -5 -4 -4 -4 -4 -3 -3 -3 -3 -2 -2 -1 --------- Run | Yrd Mat Sub Rec Scr Fac Ext Cet Arc Hub Fac Upp Upp Zhi Pro Res Qua Sec Res Tes Acc Levels Raised 33 | . 3 1 3 2 5 2 3 1 3 2 . . 1 1 1 . 1 2 1 1 XP Earned 53442 | 3000 5656 1563 4050 2543 8541 2945 3511 2436 3951 2894 512 331 141 1473 1616 1170 1541 3027 668 1873 XP Spent 52070 | . 7300 810 100 3285 10990 3200 . 1250 8800 1500 . 2900 1400 . . . 4760 . 4440 1335 Upgrades 105 | . 8 4 2 13 20 7 . 5 5 3 . 3 1 . . . 19 . 12 3 Power Slot 2 | . 1 . . . . . . . . . . 1 . . . . . . . . Propulsion Slot 4 | . 2 . . 1 . . . . . . . . 1 . . . . . . . Utility Slot 8 | . 5 . . . 1 . . . 2 . . . . . . . . . . . Weapon Slot 2 | . . . . 1 . . . . . . . . . . . . 1 . . . Core Integrity 44 | . . 2 2 7 . . . . . . . . . . . . 18 . 12 3 Heat Dissipation 13 | . . . . 2 6 . . 5 . . . . . . . . . . . . Energy Generation 6 | . . . . . 3 . . . 3 . . . . . . . . . . . Inventory Capacity 2 | . . 2 . . . . . . . . . . . . . . . . . . Sight Range 4 | . . . . . . 1 . . . 3 . . . . . . . . . . Ranged Accuracy 8 | . . . . 2 2 2 . . . . . 2 . . . . . . . . Melee Accuracy 4 | . . . . . . 4 . . . . . . . . . . . . . . Hack Attack % 4 | . . . . . 4 . . . . . . . . . . . . . . . EX Damage % 4 | . . . . . 4 . . . . . . . . . . . . . . . Protomatter Created 2260 | . 52 133 . 702 111 12 81 189 359 46 51 . . 142 . 44 . 204 67 67 Integrity Restored 4400 | . 156 519 . 381 663 171 . 829 362 60 126 348 . 410 48 . . 126 201 . Core 3798 | . 143 506 . 381 663 171 . 659 354 25 126 300 . 95 48 . . 126 201 . Parts 602 | . 13 13 . . . . . 170 8 35 . 48 . 315 . . . . . . Protomatter Decayed 2156 | . 47 110 . 159 21 359 12 . 158 16 . 45 . . 493 . 115 555 49 17 Game ------ Seed WardroneSchematicLauncher Manual? 0 Play Time 03:03:59 Cumulative 248.0 hours Start 2026.08.29 @ 13:55:43 End 2026.08.29 @ 17:49:07 Sessions 1 Manual Loads 0 Difficulty Rogue Special Mode Winter2019/RPGLIKE Game No. 157 Rogue 157 Adventurer 0 Explorer 0 Win Type - Total 6 Types 2/0/2/1/0/0/0/1/0/0 Lore% 60 Gallery% 74 Achievement% 58 Wizard Run 0 Options --------- Layout 2 ASCII 0 Keyboard 0 Movement Mouse Keybinds 0 Fullscreen 1 Font 32/SmallcapsGlow Map View 50x44 Zoom Use 0% Tactical HUD 1 Map Filters NONE Filters NONE Steam 1 RUN: 4a255775-1003-46b5-84f4-39ecb8a1a35d